[Event "Late-Titled-Tuesday-Blitz-April-16-2024"]
[Site "Chess.com"]
[Date "2024.04.16"]
[Round "5"]
[White "SmirnovTimofey2000"]
[Black "carloseduar100"]
[Result "0-1"]
[WhiteElo "1979"]
[BlackElo "2240"]
[TimeControl "180+1"]
[EndTime "14:53:51 PDT"]
[Termination "carloseduar100 won on time"]

1. d4 {[%clk 0:03:00.9]} 1... d5 {[%clk 0:02:53.7]} 2. Bf4 {[%clk 0:02:58.7]}
2... e6 {[%clk 0:02:50.8]} 3. e3 {[%clk 0:02:58.6]} 3... a6 {[%clk 0:02:49.6]}
4. c3 {[%clk 0:02:57.8]} 4... Nf6 {[%clk 0:02:49.8]} 5. Nd2 {[%clk 0:02:55.7]}
5... Nbd7 {[%clk 0:02:49.7]} 6. h3 {[%clk 0:02:55.5]} 6... c5 {[%clk 0:02:49.9]}
7. Ngf3 {[%clk 0:02:55]} 7... b5 {[%clk 0:02:48.7]} 8. Ne5 {[%clk 0:02:53]} 8...
Bb7 {[%clk 0:02:48.3]} 9. Be2 {[%clk 0:02:50.9]} 9... Be7 {[%clk 0:02:46.1]} 10.
O-O {[%clk 0:02:50]} 10... O-O {[%clk 0:02:46.3]} 11. Ndf3 {[%clk 0:02:47.1]}
11... Ne4 {[%clk 0:02:44.8]} 12. a4 {[%clk 0:02:24.7]} 12... b4 {[%clk
0:02:40.3]} 13. Nxd7 {[%clk 0:02:16.1]} 13... Qxd7 {[%clk 0:02:38.1]} 14. Ne5
{[%clk 0:02:16.4]} 14... Qc8 {[%clk 0:02:36]} 15. f3 {[%clk 0:02:15.9]} 15...
Nd6 {[%clk 0:02:35.2]} 16. cxb4 {[%clk 0:02:02.8]} 16... cxb4 {[%clk 0:02:12.7]}
17. Rc1 {[%clk 0:02:02.1]} 17... Qd8 {[%clk 0:02:10.9]} 18. Nc6 {[%clk
0:01:56.1]} 18... Bxc6 {[%clk 0:02:10.4]} 19. Rxc6 {[%clk 0:01:52.7]} 19... a5
{[%clk 0:01:59]} 20. b3 {[%clk 0:01:42.6]} 20... Rc8 {[%clk 0:01:58.4]} 21. Qc2
{[%clk 0:01:39.4]} 21... Nf5 {[%clk 0:01:48.6]} 22. Rc1 {[%clk 0:01:29]} 22...
Rxc6 {[%clk 0:01:47.3]} 23. Qxc6 {[%clk 0:01:28.4]} 23... g5 {[%clk 0:01:47.1]}
24. Bc7 {[%clk 0:01:26.3]} 24... Qa8 {[%clk 0:01:41.2]} 25. Kf2 {[%clk
0:01:08.3]} 25... Bf6 {[%clk 0:01:30.1]} 26. Bd3 {[%clk 0:00:48.4]} 26... Ne7
{[%clk 0:01:22.4]} 27. Qd6 {[%clk 0:00:21.8]} 27... Rc8 {[%clk 0:01:16.8]} 28.
Bb5 {[%clk 0:00:20.6]} 28... Nf5 {[%clk 0:00:42.9]} 29. Qd7 {[%clk 0:00:14.9]}
29... Bd8 {[%clk 0:00:32.2]} 30. Qe8+ {[%clk 0:00:07.8]} 30... Kg7 {[%clk
0:00:32.1]} 31. Be5+ {[%clk 0:00:08.1]} 31... Kg6 {[%clk 0:00:17.4]} 32. Qg8+
{[%clk 0:00:06.5]} 32... Kh6 {[%clk 0:00:17.7]} 33. Qf8+ {[%clk 0:00:03]} 33...
Kg6 {[%clk 0:00:16.8]} 34. Qg8+ {[%clk 0:00:03.1]} 34... Kh6 {[%clk 0:00:16.8]}
35. Qf8+ {[%clk 0:00:03.4]} 35... Kh5 {[%clk 0:00:16.4]} 36. Qxf7+ {[%clk
0:00:02.8]} 36... Kh6 {[%clk 0:00:16.8]} 37. Qf8+ {[%clk 0:00:02.5]} 37... Kg6
{[%clk 0:00:16.7]} 38. Qg8+ {[%clk 0:00:01.8]} 38... Kh5 {[%clk 0:00:13.5]} 39.
Be8+ {[%clk 0:00:01.8]} 39... Kh4 {[%clk 0:00:12.2]} 40. g3+ {[%clk 0:00:01.7]}
40... Kxh3 {[%clk 0:00:09.4]} 41. g4 {[%clk 0:00:01.2]} 41... Nh4 {[%clk
0:00:09.9]} 42. Qxh7 {[%clk 0:00:01.3]} 42... Rxc1 {[%clk 0:00:07.8]} 0-1

[Event "Late-Titled-Tuesday-Blitz-April-16-2024"]
[Site "Chess.com"]
[Date "2024.04.16"]
[Round "5"]
[White "Nf3c5"]
[Black "micke12a"]
[Result "1-0"]
[WhiteElo "2651"]
[BlackElo "2444"]
[TimeControl "180+1"]
[EndTime "14:53:52 PDT"]
[Termination "Nf3c5 won on time"]

1. e4 {[%clk 0:03:00.9]} 1... c5 {[%clk 0:02:59.6]} 2. Nc3 {[%clk 0:02:59.1]}
2... a6 {[%clk 0:02:56.1]} 3. d4 {[%clk 0:02:58]} 3... cxd4 {[%clk 0:02:56]} 4.
Qxd4 {[%clk 0:02:58.8]} 4... Nc6 {[%clk 0:02:55.9]} 5. Qe3 {[%clk 0:02:59.5]}
5... g6 {[%clk 0:02:55.6]} 6. Bd2 {[%clk 0:02:54.8]} 6... Bg7 {[%clk 0:02:54.1]}
7. O-O-O {[%clk 0:02:52.8]} 7... Nf6 {[%clk 0:02:54.5]} 8. Nd5 {[%clk 0:02:44]}
8... O-O {[%clk 0:02:36.9]} 9. Bc3 {[%clk 0:02:39.4]} 9... Ng4 {[%clk
0:02:23.9]} 10. Qg3 {[%clk 0:02:23.4]} 10... Bxc3 {[%clk 0:02:12.9]} 11. Nxc3
{[%clk 0:02:24.3]} 11... d6 {[%clk 0:02:13]} 12. h4 {[%clk 0:02:15.5]} 12... h5
{[%clk 0:02:07.3]} 13. Be2 {[%clk 0:02:11]} 13... Qb6 {[%clk 0:02:06]} 14. Bxg4
{[%clk 0:02:11.2]} 14... Bxg4 {[%clk 0:02:05.6]} 15. f3 {[%clk 0:02:11.2]} 15...
Be6 {[%clk 0:02:06]} 16. Nge2 {[%clk 0:02:08.2]} 16... Qe3+ {[%clk 0:02:01.2]}
17. Kb1 {[%clk 0:02:07.5]} 17... b5 {[%clk 0:02:01.2]} 18. Qf4 {[%clk
0:02:03.1]} 18... Qxf4 {[%clk 0:02:00.2]} 19. Nxf4 {[%clk 0:02:03.1]} 19... Kg7
{[%clk 0:01:56.3]} 20. Rhg1 {[%clk 0:01:54.7]} 20... Ne5 {[%clk 0:01:56.3]} 21.
b3 {[%clk 0:01:53.3]} 21... Rac8 {[%clk 0:01:52.2]} 22. Nxe6+ {[%clk 0:01:48.7]}
22... fxe6 {[%clk 0:01:52.1]} 23. Ne2 {[%clk 0:01:49.6]} 23... b4 {[%clk
0:01:40.9]} 24. Nd4 {[%clk 0:01:48.6]} 24... Kf7 {[%clk 0:01:38.1]} 25. Kb2
{[%clk 0:01:46.2]} 25... Rc3 {[%clk 0:01:35.8]} 26. a3 {[%clk 0:01:44]} 26... a5
{[%clk 0:01:34.4]} 27. axb4 {[%clk 0:01:40.8]} 27... axb4 {[%clk 0:01:34.3]} 28.
Ra1 {[%clk 0:01:41.5]} 28... Rfc8 {[%clk 0:01:32]} 29. Rgd1 {[%clk 0:01:34.2]}
29... Nd7 {[%clk 0:01:04.2]} 30. Rd2 {[%clk 0:01:27.1]} 30... Nb6 {[%clk
0:00:56.9]} 31. Ra7 {[%clk 0:01:17]} 31... e5 {[%clk 0:00:52.2]} 32. Nb5 {[%clk
0:01:14.8]} 32... Ke6 {[%clk 0:00:34.5]} 33. Ra6 {[%clk 0:00:59.1]} 33... R8c6
{[%clk 0:00:23.6]} 34. Kb1 {[%clk 0:00:47]} 34... R3c5 {[%clk 0:00:19.2]} 35.
Na7 {[%clk 0:00:43.5]} 35... Nc4 {[%clk 0:00:16.4]} 36. Nxc6 {[%clk 0:00:36.5]}
36... Nxd2+ {[%clk 0:00:16.2]} 37. Kb2 {[%clk 0:00:37.1]} 37... Nf1 {[%clk
0:00:13.2]} 38. Nxb4 {[%clk 0:00:36.3]} 38... Ne3 {[%clk 0:00:13.3]} 39. g3
{[%clk 0:00:34.6]} 39... Nf1 {[%clk 0:00:13.5]} 40. g4 {[%clk 0:00:34.2]} 40...
Nh2 {[%clk 0:00:13.9]} 41. gxh5 {[%clk 0:00:34.2]} 41... gxh5 {[%clk 0:00:14.4]}
42. Ra7 {[%clk 0:00:27.4]} 42... Nxf3 {[%clk 0:00:14.3]} 43. Nd5 {[%clk
0:00:28.2]} 43... Rxd5 {[%clk 0:00:10.8]} 44. exd5+ {[%clk 0:00:27.9]} 44...
Kxd5 {[%clk 0:00:11.7]} 45. Rxe7 {[%clk 0:00:27.5]} 45... Nxh4 {[%clk
0:00:11.3]} 46. c4+ {[%clk 0:00:25.9]} 46... Kc5 {[%clk 0:00:10.2]} 47. Kc3
{[%clk 0:00:25.9]} 47... Nf3 {[%clk 0:00:09.1]} 48. b4+ {[%clk 0:00:26.3]} 48...
Kc6 {[%clk 0:00:09.7]} 49. b5+ {[%clk 0:00:22.6]} 49... Kb6 {[%clk 0:00:10.1]}
50. Kb4 {[%clk 0:00:22]} 50... h4 {[%clk 0:00:08.9]} 51. Rd7 {[%clk 0:00:20.1]}
51... h3 {[%clk 0:00:08.7]} 52. Rxd6+ {[%clk 0:00:20.4]} 52... Kc7 {[%clk
0:00:08.5]} 53. Rh6 {[%clk 0:00:20.9]} 53... h2 {[%clk 0:00:08.3]} 54. c5 {[%clk
0:00:21]} 54... e4 {[%clk 0:00:08.3]} 55. Rh7+ {[%clk 0:00:21.5]} 55... Kd8
{[%clk 0:00:08]} 56. b6 {[%clk 0:00:21.5]} 56... e3 {[%clk 0:00:08.6]} 57. b7
{[%clk 0:00:21.7]} 1-0

[Event "Late-Titled-Tuesday-Blitz-April-16-2024"]
[Site "Chess.com"]
[Date "2024.04.16"]
[Round "5"]
[White "temus_galaktionov"]
[Black "only_strong_moves"]
[Result "1-0"]
[WhiteElo "2870"]
[BlackElo "2672"]
[TimeControl "180+1"]
[EndTime "14:53:54 PDT"]
[Termination "temus_galaktionov won by resignation"]

1. d4 {[%clk 0:03:00.9]} 1... Nf6 {[%clk 0:02:59.9]} 2. Nf3 {[%clk 0:03:01.6]}
2... e6 {[%clk 0:03:00.5]} 3. c4 {[%clk 0:03:01.5]} 3... d5 {[%clk 0:03:01.1]}
4. Nc3 {[%clk 0:03:01.4]} 4... c5 {[%clk 0:03:00.6]} 5. cxd5 {[%clk 0:03:01.4]}
5... cxd4 {[%clk 0:03:01]} 6. Nxd4 {[%clk 0:02:51.8]} 6... Nxd5 {[%clk
0:03:00.7]} 7. Bd2 {[%clk 0:02:52.4]} 7... Be7 {[%clk 0:02:59.2]} 8. e4 {[%clk
0:02:52.2]} 8... Nxc3 {[%clk 0:02:58.3]} 9. Bxc3 {[%clk 0:02:53.1]} 9... O-O
{[%clk 0:02:58.3]} 10. Be2 {[%clk 0:02:53.6]} 10... Bd7 {[%clk 0:02:45]} 11. O-O
{[%clk 0:02:51.6]} 11... Nc6 {[%clk 0:02:45.5]} 12. Rc1 {[%clk 0:02:42.4]} 12...
Bf6 {[%clk 0:02:38.9]} 13. Nxc6 {[%clk 0:02:41.3]} 13... Bxc6 {[%clk 0:02:39.8]}
14. e5 {[%clk 0:02:34.1]} 14... Be7 {[%clk 0:02:39.7]} 15. Qc2 {[%clk
0:02:28.7]} 15... Qb6 {[%clk 0:02:35.6]} 16. Bd3 {[%clk 0:02:25.5]} 16... h6
{[%clk 0:02:33]} 17. Rfd1 {[%clk 0:02:20.8]} 17... Rfd8 {[%clk 0:02:32.6]} 18.
Qe2 {[%clk 0:02:12.5]} 18... Rac8 {[%clk 0:02:17.4]} 19. Bb1 {[%clk 0:02:04]}
19... Bg5 {[%clk 0:02:11]} 20. Rxd8+ {[%clk 0:02:02.3]} 20... Rxd8 {[%clk
0:02:11.9]} 21. Rd1 {[%clk 0:02:02.2]} 21... Bd5 {[%clk 0:02:02.9]} 22. g3
{[%clk 0:01:53.2]} 22... Be7 {[%clk 0:02:00.8]} 23. Qc2 {[%clk 0:01:43.1]} 23...
Bc5 {[%clk 0:01:43.4]} 24. b4 {[%clk 0:01:31.5]} 24... Bxb4 {[%clk 0:01:26.7]}
25. Bxb4 {[%clk 0:00:45.9]} 25... Qxb4 {[%clk 0:01:27.6]} 26. Qh7+ {[%clk
0:00:46.2]} 26... Kf8 {[%clk 0:01:28.2]} 27. Qh8+ {[%clk 0:00:47.1]} 27... Ke7
{[%clk 0:01:28.9]} 28. Qxg7 {[%clk 0:00:47.8]} 28... Qc3 {[%clk 0:01:05.5]} 29.
Qf6+ {[%clk 0:00:46.7]} 29... Ke8 {[%clk 0:01:04.8]} 30. Be4 {[%clk 0:00:36]}
30... b5 {[%clk 0:00:31.2]} 31. h4 {[%clk 0:00:31.5]} 31... Rd7 {[%clk
0:00:22.4]} 32. Bxd5 {[%clk 0:00:28.1]} 32... Rxd5 {[%clk 0:00:22.6]} 33. Rf1
{[%clk 0:00:26.5]} 33... h5 {[%clk 0:00:17.2]} 34. Qh8+ {[%clk 0:00:26.2]} 34...
Ke7 {[%clk 0:00:17.1]} 35. Qxh5 {[%clk 0:00:26.8]} 35... Rxe5 {[%clk 0:00:17.7]}
36. Qh6 {[%clk 0:00:22.6]} 36... Rf5 {[%clk 0:00:14.1]} 37. Rc1 {[%clk
0:00:17.1]} 37... Qd4 {[%clk 0:00:11.1]} 38. Rf1 {[%clk 0:00:12.4]} 38... Qg4
{[%clk 0:00:11.1]} 39. Qe3 {[%clk 0:00:11.4]} 39... a5 {[%clk 0:00:08.5]} 40.
Qa7+ {[%clk 0:00:11.4]} 40... Kf6 {[%clk 0:00:08.6]} 41. Qxa5 {[%clk 0:00:11.9]}
41... Rf3 {[%clk 0:00:07.2]} 42. Qd8+ {[%clk 0:00:12.3]} 42... Kg7 {[%clk
0:00:06.8]} 43. Qd6 {[%clk 0:00:12.1]} 43... f6 {[%clk 0:00:05]} 44. Kg2 {[%clk
0:00:12]} 44... Rc3 {[%clk 0:00:03.9]} 45. Re1 {[%clk 0:00:09.6]} 45... Rc4
{[%clk 0:00:01.9]} 46. Qxe6 {[%clk 0:00:08.8]} 46... Qxe6 {[%clk 0:00:02.1]} 47.
Rxe6 {[%clk 0:00:09.7]} 47... b4 {[%clk 0:00:02.9]} 48. Rb6 {[%clk 0:00:09.9]}
48... Rc2 {[%clk 0:00:03.6]} 49. Rxb4 {[%clk 0:00:09.6]} 49... Rxa2 {[%clk
0:00:04.5]} 50. Rf4 {[%clk 0:00:10.1]} 50... Ra5 {[%clk 0:00:04.5]} 51. g4
{[%clk 0:00:10.5]} 51... Kg6 {[%clk 0:00:05.4]} 52. Kg3 {[%clk 0:00:10.7]} 52...
Re5 {[%clk 0:00:05.9]} 53. f3 {[%clk 0:00:11]} 53... Ra5 {[%clk 0:00:06.8]} 54.
Rd4 {[%clk 0:00:10.6]} 54... Ra1 {[%clk 0:00:07.7]} 55. h5+ {[%clk 0:00:11]}
55... Kh6 {[%clk 0:00:07.6]} 56. Kf4 {[%clk 0:00:11.3]} 56... Re1 {[%clk
0:00:07.5]} 57. Kf5 {[%clk 0:00:11.3]} 1-0

[Event "Late-Titled-Tuesday-Blitz-April-16-2024"]
[Site "Chess.com"]
[Date "2024.04.16"]
[Round "5"]
[White "CaspiIsrael"]
[Black "Rawnsdale"]
[Result "0-1"]
[WhiteElo "2710"]
[BlackElo "2498"]
[TimeControl "180+1"]
[EndTime "14:53:55 PDT"]
[Termination "Rawnsdale won by checkmate"]

1. d4 {[%clk 0:03:00.9]} 1... d5 {[%clk 0:02:59.9]} 2. c4 {[%clk 0:03:01.2]}
2... e6 {[%clk 0:03:00]} 3. Nf3 {[%clk 0:03:01.6]} 3... Be7 {[%clk 0:03:00.5]}
4. g3 {[%clk 0:03:02.3]} 4... Nf6 {[%clk 0:03:00.8]} 5. Bg2 {[%clk 0:03:03]}
5... O-O {[%clk 0:03:01.3]} 6. O-O {[%clk 0:03:03.3]} 6... dxc4 {[%clk
0:03:01.8]} 7. Ne5 {[%clk 0:03:03.2]} 7... Qd6 {[%clk 0:03:01.8]} 8. Nxc4 {[%clk
0:03:02]} 8... Qa6 {[%clk 0:03:01.7]} 9. b3 {[%clk 0:03:01.9]} 9... Rd8 {[%clk
0:03:01.5]} 10. e3 {[%clk 0:02:55]} 10... c5 {[%clk 0:03:01.4]} 11. Ba3 {[%clk
0:02:55.1]} 11... Nc6 {[%clk 0:02:58.2]} 12. Qc1 {[%clk 0:02:33.2]} 12... cxd4
{[%clk 0:02:50.2]} 13. Bxe7 {[%clk 0:02:33.6]} 13... Nxe7 {[%clk 0:02:50.8]} 14.
Rd1 {[%clk 0:02:33.9]} 14... Bd7 {[%clk 0:02:45.4]} 15. Rxd4 {[%clk 0:02:32.7]}
15... Bc6 {[%clk 0:02:44.6]} 16. Rxd8+ {[%clk 0:02:25.8]} 16... Rxd8 {[%clk
0:02:43.7]} 17. Bxc6 {[%clk 0:02:26.4]} 17... Nxc6 {[%clk 0:02:44.6]} 18. Nc3
{[%clk 0:02:22.7]} 18... b5 {[%clk 0:02:41.6]} 19. Nd2 {[%clk 0:02:15.1]} 19...
Ne5 {[%clk 0:02:39.3]} 20. Nce4 {[%clk 0:02:12.1]} 20... Nd5 {[%clk 0:02:31]}
21. Qc5 {[%clk 0:01:59.4]} 21... Nd3 {[%clk 0:02:22.4]} 22. Qd4 {[%clk
0:01:53.3]} 22... N3b4 {[%clk 0:02:07.5]} 23. Qb2 {[%clk 0:01:36.8]} 23... h6
{[%clk 0:01:52.2]} 24. a3 {[%clk 0:01:36]} 24... Nc6 {[%clk 0:01:39.5]} 25. Rc1
{[%clk 0:01:35.8]} 25... Qb6 {[%clk 0:01:34.3]} 26. Nc5 {[%clk 0:01:31]} 26...
b4 {[%clk 0:01:25.9]} 27. a4 {[%clk 0:01:29.5]} 27... Nc3 {[%clk 0:01:20.9]} 28.
Nde4 {[%clk 0:01:29.4]} 28... Ne5 {[%clk 0:00:57.8]} 29. Nxc3 {[%clk 0:01:16.3]}
29... Qxc5 {[%clk 0:00:56.6]} 30. Ne2 {[%clk 0:01:09.5]} 30... Qd5 {[%clk
0:00:54.3]} 31. Nf4 {[%clk 0:01:09.5]} 31... Qe4 {[%clk 0:00:48.9]} 32. Qc2
{[%clk 0:00:59]} 32... Qa8 {[%clk 0:00:32.9]} 33. h3 {[%clk 0:00:40.2]} 33... g5
{[%clk 0:00:32.2]} 34. Nh5 {[%clk 0:00:31.4]} 34... Nf3+ {[%clk 0:00:32.3]} 35.
Kh1 {[%clk 0:00:30.9]} 35... Nd4+ {[%clk 0:00:25.2]} 36. Kh2 {[%clk 0:00:27.7]}
36... Nxc2 {[%clk 0:00:25.3]} 37. Rxc2 {[%clk 0:00:28.1]} 37... Qf3 {[%clk
0:00:23.7]} 38. g4 {[%clk 0:00:24.7]} 38... Kh7 {[%clk 0:00:11.9]} 39. Ng3
{[%clk 0:00:22.5]} 39... Kg6 {[%clk 0:00:11.4]} 40. Ra2 {[%clk 0:00:16]} 40...
Rd1 {[%clk 0:00:11.5]} 41. a5 {[%clk 0:00:14.5]} 41... Rb1 {[%clk 0:00:11.7]}
42. Rd2 {[%clk 0:00:06.7]} 42... Rxb3 {[%clk 0:00:10.1]} 43. Kg1 {[%clk
0:00:07]} 43... Rb1+ {[%clk 0:00:09.7]} 44. Kh2 {[%clk 0:00:07.6]} 44... b3
{[%clk 0:00:10.3]} 45. a6 {[%clk 0:00:07.2]} 45... b2 {[%clk 0:00:10.6]} 46. e4
{[%clk 0:00:06.4]} 46... Rh1+ {[%clk 0:00:10.5]} 47. Nxh1 {[%clk 0:00:05.9]}
47... b1=Q {[%clk 0:00:11.4]} 48. Ng3 {[%clk 0:00:06.3]} 48... Qe1 {[%clk
0:00:10.1]} 49. Rb2 {[%clk 0:00:06.2]} 49... Qexf2+ {[%clk 0:00:10.2]} 50. Rxf2
{[%clk 0:00:06.8]} 50... Qxf2+ {[%clk 0:00:11.1]} 51. Kh1 {[%clk 0:00:07.4]}
51... Qb6 {[%clk 0:00:12]} 52. e5 {[%clk 0:00:08.2]} 52... Qxa6 {[%clk
0:00:12.4]} 53. Kg2 {[%clk 0:00:08.9]} 53... Qa2+ {[%clk 0:00:12.4]} 54. Kf3
{[%clk 0:00:09]} 54... a5 {[%clk 0:00:13.3]} 55. Ne4 {[%clk 0:00:09.9]} 55...
Qd5 {[%clk 0:00:13]} 56. Ke3 {[%clk 0:00:09.8]} 56... Qxe5 {[%clk 0:00:13.4]}
57. h4 {[%clk 0:00:10.7]} 57... gxh4 {[%clk 0:00:13.4]} 58. Kf3 {[%clk
0:00:11.6]} 58... a4 {[%clk 0:00:13.5]} 59. g5 {[%clk 0:00:12.5]} 59... hxg5
{[%clk 0:00:13.3]} 60. Nf2 {[%clk 0:00:12.9]} 60... Qf4+ {[%clk 0:00:13.6]} 61.
Kg2 {[%clk 0:00:13.1]} 61... Qxf2+ {[%clk 0:00:14.4]} 62. Kh3 {[%clk 0:00:13]}
62... a3 {[%clk 0:00:15.3]} 63. Kg4 {[%clk 0:00:13]} 63... Qg3# {[%clk
0:00:14.9]} 0-1

[Event "Late-Titled-Tuesday-Blitz-April-16-2024"]
[Site "Chess.com"]
[Date "2024.04.16"]
[Round "5"]
[White "BardArtem"]
[Black "Vahe_Danielyan"]
[Result "1-0"]
[WhiteElo "2833"]
[BlackElo "2642"]
[TimeControl "180+1"]
[EndTime "14:53:57 PDT"]
[Termination "BardArtem won on time"]

1. e4 {[%clk 0:03:00.9]} 1... c6 {[%clk 0:02:53.5]} 2. d4 {[%clk 0:02:59.5]}
2... d5 {[%clk 0:02:52.4]} 3. exd5 {[%clk 0:03:00.4]} 3... cxd5 {[%clk
0:02:52.6]} 4. Bd3 {[%clk 0:03:01.1]} 4... Nc6 {[%clk 0:02:52]} 5. c3 {[%clk
0:03:01.5]} 5... e6 {[%clk 0:02:51.2]} 6. Bf4 {[%clk 0:02:59.1]} 6... Bd6 {[%clk
0:02:48.9]} 7. Bxd6 {[%clk 0:02:59.1]} 7... Qxd6 {[%clk 0:02:49.2]} 8. Nf3
{[%clk 0:02:57.7]} 8... Nge7 {[%clk 0:02:48.9]} 9. O-O {[%clk 0:02:57.4]} 9...
O-O {[%clk 0:02:48.7]} 10. Re1 {[%clk 0:02:51.7]} 10... f6 {[%clk 0:02:48.3]}
11. Qe2 {[%clk 0:02:18]} 11... Ng6 {[%clk 0:02:28.1]} 12. Bxg6 {[%clk
0:02:13.2]} 12... hxg6 {[%clk 0:02:28]} 13. Nbd2 {[%clk 0:02:08.6]} 13... Bd7
{[%clk 0:02:24.2]} 14. Qd3 {[%clk 0:02:03.5]} 14... Kf7 {[%clk 0:02:22.6]} 15.
Re3 {[%clk 0:02:00]} 15... Rh8 {[%clk 0:02:20.3]} 16. Rae1 {[%clk 0:01:58.3]}
16... g5 {[%clk 0:02:20]} 17. Nf1 {[%clk 0:01:49.2]} 17... g4 {[%clk 0:02:12.4]}
18. N3d2 {[%clk 0:01:49.4]} 18... Rh6 {[%clk 0:02:10.8]} 19. Ng3 {[%clk
0:01:25.9]} 19... Rah8 {[%clk 0:02:09]} 20. Ndf1 {[%clk 0:01:26.3]} 20... f5
{[%clk 0:01:57]} 21. R3e2 {[%clk 0:01:03.5]} 21... f4 {[%clk 0:01:54.7]} 22. Nh1
{[%clk 0:01:03]} 22... Ne7 {[%clk 0:01:44]} 23. f3 {[%clk 0:00:49.1]} 23... g3
{[%clk 0:01:38.3]} 24. h3 {[%clk 0:00:21.7]} 24... Nf5 {[%clk 0:01:38.5]} 25.
Re5 {[%clk 0:00:20.5]} 25... g5 {[%clk 0:01:23.1]} 26. Nd2 {[%clk 0:00:09.9]}
26... R8h7 {[%clk 0:01:16.3]} 27. b3 {[%clk 0:00:06.1]} 27... Qb8 {[%clk
0:01:15.9]} 28. c4 {[%clk 0:00:04.6]} 28... Qh8 {[%clk 0:01:15]} 29. cxd5 {[%clk
0:00:03.1]} 29... Rxh3 {[%clk 0:01:07.7]} 30. gxh3 {[%clk 0:00:02]} 30... Rxh3
{[%clk 0:01:08.6]} 31. Kf1 {[%clk 0:00:02.1]} 31... Rxh1+ {[%clk 0:01:05.3]} 32.
Ke2 {[%clk 0:00:02.4]} 32... Qh2+ {[%clk 0:01:05.7]} 33. Kd1 {[%clk 0:00:02.6]}
33... Rxe1+ {[%clk 0:01:06.3]} 34. Kxe1 {[%clk 0:00:03.2]} 34... g2 {[%clk
0:01:07.2]} 35. dxe6+ {[%clk 0:00:03.6]} 35... Kg7 {[%clk 0:01:07.1]} 36. Kd1
{[%clk 0:00:02.2]} 36... g1=Q+ {[%clk 0:01:06.6]} 37. Kc2 {[%clk 0:00:02.9]}
37... Ne3+ {[%clk 0:00:59.9]} 38. Kb2 {[%clk 0:00:01.9]} 38... Qgg2 {[%clk
0:00:48.1]} 39. Kc3 {[%clk 0:00:01.6]} 39... Bxe6 {[%clk 0:00:33.2]} 40. Rxe6
{[%clk 0:00:01.9]} 40... Nd5+ {[%clk 0:00:33.9]} 41. Kc4 {[%clk 0:00:01.6]}
41... Ne3+ {[%clk 0:00:17.5]} 42. Kc5 {[%clk 0:00:02.2]} 42... Qh5 {[%clk
0:00:10.1]} 43. Qe4 {[%clk 0:00:02.4]} 43... g4+ {[%clk 0:00:05.1]} 44. Re5
{[%clk 0:00:02.4]} 44... Qf7 {[%clk 0:00:01.6]} 45. Re7 {[%clk 0:00:02.8]} 45...
Kf8 {[%clk 0:00:02.1]} 46. Rxf7+ {[%clk 0:00:03]} 46... Kxf7 {[%clk 0:00:03]}
47. Qxf4+ {[%clk 0:00:03.8]} 47... Kg6 {[%clk 0:00:02.8]} 48. Qxe3 {[%clk
0:00:04.1]} 48... g3 {[%clk 0:00:03]} 49. Ne4 {[%clk 0:00:04.4]} 49... Qh2
{[%clk 0:00:02.9]} 50. Qg5+ {[%clk 0:00:04.8]} 50... Kh7 {[%clk 0:00:03.2]} 51.
Nf6+ {[%clk 0:00:05]} 1-0

[Event "Late-Titled-Tuesday-Blitz-April-16-2024"]
[Site "Chess.com"]
[Date "2024.04.16"]
[Round "5"]
[White "zano2023"]
[Black "FREZZY23"]
[Result "0-1"]
[WhiteElo "2168"]
[BlackElo "2406"]
[TimeControl "180+1"]
[EndTime "14:54:02 PDT"]
[Termination "FREZZY23 won on time"]

1. d4 {[%clk 0:03:00.9]} 1... Nf6 {[%clk 0:02:56.9]} 2. Nd2 {[%clk 0:03:00.1]}
2... d5 {[%clk 0:02:56.1]} 3. Ngf3 {[%clk 0:03:00]} 3... g6 {[%clk 0:02:55.6]}
4. e3 {[%clk 0:03:00.7]} 4... Bg7 {[%clk 0:02:55.5]} 5. Bd3 {[%clk 0:03:01.3]}
5... O-O {[%clk 0:02:55.8]} 6. O-O {[%clk 0:03:01.9]} 6... c5 {[%clk 0:02:56.4]}
7. c3 {[%clk 0:03:01.3]} 7... Nc6 {[%clk 0:02:56.1]} 8. Re1 {[%clk 0:03:00.9]}
8... Bg4 {[%clk 0:02:54.1]} 9. h3 {[%clk 0:03:00.2]} 9... Bd7 {[%clk 0:02:43.5]}
10. dxc5 {[%clk 0:02:58.4]} 10... e5 {[%clk 0:02:42.6]} 11. e4 {[%clk
0:02:56.5]} 11... Be6 {[%clk 0:02:42.8]} 12. Qe2 {[%clk 0:02:55.2]} 12... Qa5
{[%clk 0:02:41.5]} 13. b4 {[%clk 0:02:54.2]} 13... Qc7 {[%clk 0:02:40.5]} 14. a4
{[%clk 0:02:52.7]} 14... Rac8 {[%clk 0:02:38.8]} 15. exd5 {[%clk 0:02:44.7]}
15... Nxd5 {[%clk 0:02:38.4]} 16. Ne4 {[%clk 0:02:36.5]} 16... f5 {[%clk
0:02:34.5]} 17. Nd6 {[%clk 0:02:27.5]} 17... Nxc3 {[%clk 0:02:33.3]} 18. Qc2
{[%clk 0:02:22.7]} 18... e4 {[%clk 0:02:27.4]} 19. Ng5 {[%clk 0:02:16.1]} 19...
Bd5 {[%clk 0:02:22.6]} 20. Bf1 {[%clk 0:02:06.8]} 20... Nxb4 {[%clk 0:02:20.4]}
21. Qd2 {[%clk 0:01:56.4]} 21... Rcd8 {[%clk 0:02:10.9]} 22. Bb2 {[%clk
0:01:53.7]} 22... Qxc5 {[%clk 0:02:08.8]} 23. Rac1 {[%clk 0:01:50.8]} 23... Nba2
{[%clk 0:02:06.8]} 24. Nb5 {[%clk 0:01:32.3]} 24... Bb3 {[%clk 0:01:37.8]} 25.
Qf4 {[%clk 0:01:30.4]} 25... Nxc1 {[%clk 0:01:35.7]} 26. Rxc1 {[%clk 0:01:28.3]}
26... h6 {[%clk 0:01:35.7]} 27. Bxc3 {[%clk 0:01:15.2]} 27... hxg5 {[%clk
0:01:28]} 28. Qxg5 {[%clk 0:01:13.1]} 28... e3 {[%clk 0:00:51.7]} 29. Qxg6
{[%clk 0:00:54.5]} 29... exf2+ {[%clk 0:00:40.9]} 30. Kh1 {[%clk 0:00:53.6]}
30... Qe7 {[%clk 0:00:40.6]} 31. Nd4 {[%clk 0:00:42.5]} 31... Qf7 {[%clk
0:00:37.8]} 32. Qg3 {[%clk 0:00:35.4]} 32... f4 {[%clk 0:00:37.1]} 33. Qg4
{[%clk 0:00:29]} 33... Bd5 {[%clk 0:00:24.3]} 34. Nf5 {[%clk 0:00:27.2]} 34...
Be6 {[%clk 0:00:17.3]} 35. Nh6+ {[%clk 0:00:20]} 35... Kh7 {[%clk 0:00:16.7]}
36. Nxf7 {[%clk 0:00:15.4]} 36... Bxg4 {[%clk 0:00:16.7]} 37. Nxd8 {[%clk
0:00:16.1]} 37... Rxd8 {[%clk 0:00:14.4]} 38. hxg4 {[%clk 0:00:15.4]} 38... Bxc3
{[%clk 0:00:14.4]} 39. g3 {[%clk 0:00:10.9]} 39... f3 {[%clk 0:00:11.6]} 40. Kh2
{[%clk 0:00:10.9]} 40... Bd2 {[%clk 0:00:10.7]} 41. Rd1 {[%clk 0:00:10.3]} 41...
Kg6 {[%clk 0:00:10.5]} 42. Bh3 {[%clk 0:00:06.2]} 42... Kg5 {[%clk 0:00:09.8]}
43. Rb1 {[%clk 0:00:05.6]} 43... Be1 {[%clk 0:00:09.5]} 44. Rb5+ {[%clk
0:00:05.5]} 44... Kf6 {[%clk 0:00:09.2]} 45. Rf5+ {[%clk 0:00:05.1]} 45... Ke7
{[%clk 0:00:08.7]} 46. Rxf3 {[%clk 0:00:04.5]} 46... Rh8 {[%clk 0:00:09.2]} 47.
g5 {[%clk 0:00:04.1]} 47... a6 {[%clk 0:00:07.6]} 48. g4 {[%clk 0:00:03.6]}
48... b5 {[%clk 0:00:07.6]} 49. Kg2 {[%clk 0:00:04.1]} 49... bxa4 {[%clk
0:00:07.8]} 50. Re3+ {[%clk 0:00:04.1]} 50... Kf7 {[%clk 0:00:07.8]} 51. Rf3+
{[%clk 0:00:03.6]} 51... Kg6 {[%clk 0:00:08]} 52. Rf5 {[%clk 0:00:03.9]} 52...
a3 {[%clk 0:00:08]} 53. Ra5 {[%clk 0:00:03.3]} 53... Rxh3 {[%clk 0:00:07.6]} 54.
Rxa6+ {[%clk 0:00:03.4]} 54... Kxg5 {[%clk 0:00:07.7]} 0-1